bitfinex/quotes_SOLUSD_20241008
["timestamp","ask_amount","ask_price","bid_price","bid_amount"]
[1728361269656,6.9075,144.77,144.73,23.2449]
[1728361269952,20.0,144.79,144.72,17.2744]
[1728361270597,0.8117408,144.8,144.72,30.19061798]
[1728361270756,6.9067,144.79,144.74,6.9085]
[1728361272174,6.9067,144.79,144.75,8.28987078]
[1728361272347,0.8117408,144.8,144.74,17.272]
[1728361272551,6.9074,144.78,144.73,6.9092]
[1728361272754,6.9074,144.78,144.72,23.776884]
[1728361272755,6.9074,144.78,144.74,8.29042233]
[1728361273365,0.8117408,144.8,144.74,8.29042233]
[1728361273559,6.9066,144.79,144.74,6.9089]
[1728361273960,6.9066,144.79,144.74,8.29032476]
[1728361274674,6.9066,144.79,144.75,6.9084]
[1728361275375,6.9066,144.79,144.76,1.38140997]
[1728361275556,6.9066,144.79,144.75,6.9084]
[1728361275953,6.9071,144.78,144.74,6.9089]
[1728361276766,6.9071,144.78,144.75,1.38149119]
[1728361276969,6.9066,144.79,144.75,8.28989119]
[1728361277765,6.9066,144.79,144.75,6.9084]
[1728361279259,6.9066,144.79,144.76,1.38147691]
[1728361279957,6.9066,144.79,144.76,1.38140301]
[1728361280200,6.9066,144.79,144.75,6.9084]
[1728361281773,6.9066,144.79,144.76,1.381405]
[1728361284485,0.8117408,144.8,144.76,1.381405]
[1728361284663,0.8117408,144.8,144.78,6.9069]
[1728361284861,0.8117408,144.8,144.77,17.2683]
[1728361285967,7.7179408,144.8,144.77,17.2683]
[1728361286877,6.9083,144.76,144.71,6.9099]
[1728361287389,6.9083,144.76,144.71,24.1851]
[1728361287572,6.9083,144.76,144.72,6.9098]
[1728361290492,6.9083,144.76,144.71,17.2752]
[1728361290784,20.0,144.79,144.71,24.1854]
[1728361290994,6.9086,144.75,144.71,24.1854]
[1728361293066,6.9086,144.75,144.71,17.2752]
[1728361293470,6.9094,144.73,144.69,14.12783087]
[1728361293700,6.909,144.74,144.69,7.21673087]
[1728361293881,6.909,144.74,144.7,6.9107]
[1728361294174,6.9085,144.75,144.7,6.9107]
[1728361296176,15.6803,144.76,144.7,6.9107]
[1728361296485,6.9095,144.73,144.69,6.9112]
[1728361297496,6.9095,144.73,144.68,17.2786]
[1728361297668,6.9095,144.73,144.68,24.1902]
[1728361298469,6.9095,144.73,144.68,17.2786]
[1728361298668,6.9095,144.73,144.69,6.9113]
[1728361299593,6.9095,144.73,144.7,1.3819182]
[1728361299773,6.9095,144.73,144.69,6.9113]
[1728361299982,20.0,144.75,144.69,6.9113]
[1728361300179,6.9091,144.74,144.69,6.9113]
[1728361300496,6.9091,144.74,144.7,1.38191664]
[1728361301601,6.9091,144.74,144.69,6.9113]
[1728361302189,20.0,144.73,144.66,7.21933131]
[1728361302391,20.0,144.73,144.66,14.13193131]
[1728361302702,26.9094,144.73,144.67,1.38222976]
[1728361302908,26.9094,144.73,144.69,6.9112]
[1728361303194,6.9094,144.73,144.68,6.9116]
[1728361305582,6.91,144.72,144.67,23.776884]
[1728361305899,6.91,144.72,144.67,30.688984]
[1728361306972,6.91,144.72,144.67,6.9121]
[1728361307185,6.9104,144.71,144.67,6.9121]
[1728361307408,6.9104,144.71,144.66,31.41303131]
[1728361307610,6.9113,144.69,144.66,7.21933131]
[1728361307783,6.9113,144.69,144.65,6.913]
[1728361308390,6.9113,144.69,144.63,67.5849]
[1728361308680,6.9113,144.69,144.64,6.9133]
[1728361308994,6.9113,144.69,144.65,1.38238433]
[1728361309302,6.9113,144.69,144.65,1.38239361]
[1728361309592,6.9113,144.69,144.64,6.9133]
[1728361310422,6.9118,144.68,144.64,6.9133]
[1728361312206,6.9113,144.69,144.65,1.3824297]
[1728361314201,6.9113,144.69,144.64,23.776884]
[1728361314407,6.9113,144.69,144.65,6.9131]
[1728361315085,23.2426,144.71,144.66,8.29465093]
[1728361316311,16.3322,144.71,144.69,6.911]
[1728361316492,13.3009,144.73,144.69,8.29307458]
[1728361316804,13.3009,144.73,144.68,6.9117]
[1728361316976,13.3009,144.73,144.69,1.38205732]
[1728361317185,6.9099,144.72,144.69,1.38205732]
[1728361317425,6.9099,144.72,144.67,24.1923]
[1728361317907,6.9099,144.72,144.67,17.2802]
[1728361318085,13.3008,144.73,144.68,6.9116]
[1728361320311,6.9094,144.73,144.68,6.9116]
[1728361326392,6.9094,144.73,144.69,1.38196344]
[1728361326589,6.9094,144.73,144.69,6.9112]
[1728361327009,26.9091,144.74,144.69,6.9112]
[1728361328008,6.9095,144.73,144.69,6.9112]
[1728361335914,16.0873,144.75,144.7,6.9107]
[1728361336121,16.0873,144.75,144.7,23.776884]
[1728361336620,6.9089,144.74,144.7,30.687384]
[1728361341541,20.0,144.76,144.7,23.776884]
[1728361341738,6.9086,144.75,144.71,6.91]
[1728361342023,6.9071,144.78,144.74,6.9088]
[1728361342379,0.8117408,144.8,144.75,1.38148294]
[1728361342636,7.7178408,144.8,144.75,1.38148294]
[1728361342824,7.7178408,144.8,144.76,6.9079]
[1728361344219,0.8117408,144.8,144.77,1.38126632]
[1728361344412,0.8117408,144.8,144.77,8.28866632]
[1728361344614,0.8117408,144.8,144.77,6.9074]
[1728361345510,0.8117408,144.8,144.78,8.28799876]
[1728361346335,0.8117408,144.8,144.78,6.9069]
[1728361346825,0.8117408,144.8,144.78,36.9069]
[1728361347844,0.8117408,144.8,144.78,6.9069]
[1728361348444,0.8117408,144.8,144.76,30.684784]
[1728361351340,7.7181408,144.8,144.75,24.1787]
[1728361352321,0.8117408,144.8,144.75,17.2703]
[1728361353434,6.9066,144.79,144.75,17.2703]
[1728361355150,6.9075,144.77,144.73,6.9092]
[1728361357737,6.9075,144.77,144.72,24.1837]
[1728361358041,6.9081,144.76,144.72,24.1837]
[1728361362026,20.0,144.79,144.72,17.2739]
[1728361362325,6.9076,144.77,144.71,23.776884]
[1728361362531,6.9076,144.77,144.73,6.9093]
[1728361363941,6.9071,144.78,144.73,6.9093]
[1728361364539,6.9071,144.78,144.74,1.3815627]
[1728361365131,6.9071,144.78,144.73,6.9093]
[1728361366629,6.9066,144.79,144.75,6.9083]
[1728361366826,6.9066,144.79,144.76,1.38138796]
[1728361368256,13.9067408,144.8,144.76,1.38138796]
[1728361368456,13.9067408,144.8,144.76,8.28928796]
[1728361368637,7.7178408,144.8,144.76,8.28928796]
[1728361369156,20.8117408,144.8,144.77,1.38125512]
[1728361370235,20.8117408,144.8,144.76,6.9079]
[1728361370440,27.7177408,144.8,144.76,6.9079]
[1728361370945,27.7177408,144.8,144.75,24.1788]
[1728361373638,0.8117408,144.8,144.78,6.9066]
[1728361373951,0.8117408,144.8,144.77,24.1753]
[1728361375436,0.8117408,144.8,144.78,1.38118272]
[1728361375641,0.8117408,144.8,144.77,24.1753]
[1728361378544,0.8117408,144.8,144.78,30.683584]
[1728361378868,0.8117408,144.8,144.79,1.38102588]
[1728361379643,0.8117408,144.8,144.78,6.9067]
[1728361380255,0.8117408,144.8,144.77,17.2679]
[1728361380503,7.7178408,144.8,144.77,17.2679]
[1728361381658,7.7178408,144.8,144.76,6.9076]
[1728361382163,6.9066,144.79,144.75,23.776884]
[1728361382550,6.9066,144.79,144.75,30.685084]
[1728361383352,6.907,144.78,144.74,24.1802]
[1728361385047,6.9076,144.77,144.73,30.686084]
[1728361386466,6.9073,144.78,144.73,30.686084]
[1728361387461,20.8117408,144.8,144.73,30.686084]
[1728361387660,6.9076,144.77,144.73,30.686084]
[1728361388168,6.9076,144.77,144.74,1.38152949]
[1728361388751,6.9076,144.77,144.73,30.686084]
[1728361389277,6.9076,144.77,144.74,1.38152683]
[1728361389777,6.9076,144.77,144.73,30.686084]
[1728361389956,6.9076,144.77,144.72,7.21501855]
[1728361389957,6.908,144.76,144.72,14.12471855]
[1728361391968,6.9078,144.77,144.72,14.12471855]
[1728361393268,6.9085,144.75,144.72,7.21501855]
[1728361393470,6.9085,144.75,144.71,24.1853]
[1728361399379,6.9085,144.75,144.71,17.2751]
[1728361401280,6.9085,144.75,144.71,24.1854]
[1728361403756,23.1252,144.76,144.71,24.1854]
[1728361405360,23.1252,144.76,144.72,1.38173626]
[1728361405560,23.1252,144.76,144.71,24.1854]
[1728361406088,23.1252,144.76,144.72,6.9097]
[1728361406591,23.1252,144.76,144.71,24.1852]
[1728361407885,16.2171,144.76,144.71,24.1852]
[1728361408076,16.2171,144.76,144.69,7.2183129]
[1728361408272,6.9094,144.73,144.69,14.1294129]
[1728361408489,6.9094,144.73,144.69,6.9111]
[1728361414582,6.9094,144.73,144.7,1.38197541]
[1728361415174,16.2171,144.76,144.7,1.38197541]
[1728361415488,6.909,144.74,144.7,8.29277541]
[1728361415692,6.909,144.74,144.7,6.9108]
[1728361416572,6.909,144.74,144.69,1.38197265]
[1728361416782,6.909,144.74,144.69,6.9111]
[1728361416984,6.909,144.74,144.7,1.3819726]
[1728361417778,6.9094,144.73,144.69,6.9111]
[1728361418478,6.9094,144.73,144.7,1.38197472]
[1728361418679,6.9094,144.73,144.69,6.9111]
[1728361419698,6.9094,144.73,144.67,20.13529972]
[1728361419699,26.0746,144.75,144.67,7.21908174]
[1728361419893,16.1564,144.73,144.65,17.2825]
[1728361420073,6.91,144.72,144.67,17.2803]
[1728361420286,6.91,144.72,144.68,6.9116]
[1728361422174,23.0658,144.73,144.69,24.1892]
[1728361422669,16.1564,144.73,144.69,17.278]
[1728361422988,16.1564,144.73,144.7,6.9107]
[1728361424085,16.1564,144.73,144.71,8.29215949]
[1728361424287,16.1564,144.73,144.71,6.9103]
[1728361425296,16.1564,144.73,144.69,24.1888]
[1728361425667,23.0659,144.73,144.69,24.1888]
[1728361429395,6.9098,144.72,144.69,17.278]
[1728361429893,23.0658,144.73,144.69,24.1892]
[1728361430199,16.1564,144.73,144.69,17.278]
[1728361430380,6.9098,144.72,144.69,17.278]
[1728361431675,23.0658,144.73,144.69,24.1892]
[1728361433881,6.9099,144.72,144.69,17.278]
[1728361439311,23.0659,144.73,144.69,24.1892]
[1728361453923,6.91,144.72,144.67,30.688784]
[1728361454292,6.91,144.72,144.68,6.9114]
[1728361454496,23.066,144.73,144.68,6.9114]
[1728361455225,23.066,144.73,144.69,6.9112]
[1728361456237,23.066,144.73,144.7,1.38199785]
[1728361457500,16.1564,144.73,144.7,1.38199785]
[1728361458504,12.9832,144.75,144.71,6.9103]
[1728361458704,12.9832,144.75,144.71,8.29223298]
[1728361459472,6.0746,144.75,144.71,1.38193298]
[1728361459605,6.0746,144.75,144.7,17.2767]
[1728361459921,6.9094,144.73,144.7,17.2767]
[1728361468528,6.9099,144.72,144.68,6.9116]
[1728361469701,6.9095,144.73,144.69,6.9112]
[1728361470707,6.9094,144.73,144.7,1.38208396]
[1728361470906,6.9094,144.73,144.69,6.911]
[1728361478034,6.909,144.74,144.7,8.29278114]
[1728361478229,6.909,144.74,144.7,6.9108]
[1728361491336,6.9094,144.73,144.69,6.9112]
[1728361492617,6.9094,144.73,144.68,23.776884]
[1728361492618,6.91,144.72,144.68,6.9116]
[1728361492824,6.9103,144.71,144.67,39.643]
[1728361493128,20.0,144.74,144.67,17.2801]
[1728361493328,6.9117,144.69,144.64,24.1972]
[1728361494840,6.9118,144.68,144.64,24.1972]
[1728361495048,6.9118,144.68,144.64,17.2837]
[1728361495428,6.9118,144.68,144.64,24.1974]
[1728361500832,6.9122,144.67,144.64,17.2837]
[1728361503230,0.12549,144.71,144.64,17.2837]
[1728361503554,6.9117,144.69,144.64,24.1972]
[1728361503757,6.9119,144.68,144.64,24.1972]
[1728361504553,6.9114,144.69,144.64,24.1973]
[1728361504751,6.9119,144.68,144.64,24.1973]
[1728361519264,0.12549,144.71,144.64,17.2837]
[1728361519561,6.9118,144.68,144.64,24.1972]
[1728361521957,6.9135,144.65,144.61,17.2871]
[1728361522262,30.348974,144.71,144.6,15.5059]
[1728361522263,32.7332,144.69,144.6,15.5059]
[1728361522435,20.12549,144.66,144.58,30.85436564]
[1728361522637,6.9147,144.62,144.58,37.77056564]
[1728361523240,6.9147,144.62,144.58,17.2906]
[1728361523437,20.12549,144.66,144.56,22.9133]
[1728361523438,6.9155,144.61,144.56,22.9133]
[1728361523770,6.9155,144.61,144.57,6.9169]
[1728361525040,6.9155,144.61,144.56,22.9134]
[1728361525343,6.9156,144.6,144.56,22.9134]
[1728361526462,6.9156,144.6,144.56,24.29668541]
[1728361529856,20.12549,144.63,144.56,22.9134]
[1728361530064,6.9152,144.61,144.56,22.9134]
[1728361530958,6.9152,144.61,144.56,6.9175]
[1728361531159,6.9156,144.6,144.55,24.51997889]
[1728361531342,6.9156,144.6,144.55,24.2125]
[1728361534144,6.9162,144.59,144.55,24.2125]
[1728361536862,37.41129,144.63,144.55,17.2947]
[1728361537054,6.9166,144.58,144.55,17.2947]
[1728361538360,6.9161,144.59,144.55,25.59616884]
[1728361538865,6.9156,144.6,144.56,6.9173]
[1728361548381,37.2858,144.63,144.55,17.2947]
[1728361548569,6.9161,144.59,144.55,24.2125]
[1728361549768,37.2858,144.63,144.55,17.2947]
[1728361549986,6.9161,144.59,144.55,24.2125]
[1728361554866,6.9167,144.58,144.55,17.2947]
[1728361556381,6.9167,144.58,144.54,6.9184]
[1728361556559,6.9171,144.57,144.53,6.9188]
[1728361560172,6.9167,144.58,144.54,6.918]
[1728361560685,6.68488,144.62,144.54,6.918]
[1728361560686,26.9159,144.6,144.56,6.9171]
[1728361561058,20.0,144.6,144.54,17.2955]
[1728361561373,6.9161,144.59,144.55,6.9179]
[1728361569679,6.9161,144.59,144.55,8.30130564]
[1728361570882,6.9156,144.6,144.56,6.9172]
[1728361573485,6.9161,144.59,144.55,6.9178]
[1728361576178,6.9161,144.59,144.55,8.30112837]
[1728361576704,6.9161,144.59,144.55,6.9178]
[1728361577377,0.12549,144.62,144.55,6.9178]
[1728361577680,6.9158,144.6,144.55,6.9178]
[1728361579178,6.9158,144.6,144.56,6.9174]
[1728361579789,6.9148,144.62,144.58,6.9165]
[1728361579995,15.6216,144.64,144.59,8.29884693]
[1728361580189,6.9147,144.62,144.58,24.2076]
[1728361580800,6.9152,144.61,144.58,17.2911]
[1728361586406,17.2834,144.65,144.56,6.009]
[1728361586608,6.9156,144.6,144.56,12.9262]
[1728361588609,20.25098,144.64,144.57,6.9166]
[1728361588810,6.9148,144.62,144.58,6.9165]
[1728361599121,6.9142,144.63,144.59,8.29894465]
[1728361599419,14.16571143,144.7,144.61,12.91621798]
[1728361599717,6.9119,144.68,144.64,6.9137]
[1728361600519,20.0,144.67,144.62,23.776884]
[1728361600714,20.0,144.67,144.63,6.914]
[1728361601320,6.9119,144.68,144.63,6.914]
[1728361603012,6.9119,144.68,144.64,1.38251938]
[1728361603816,6.9119,144.68,144.63,22.6814]
[1728361604007,20.25098,144.72,144.64,7.88682801]
[1728361604323,0.12549,144.72,144.64,7.88682801]
[1728361604527,0.25098,144.73,144.64,7.88682801]
[1728361604711,6.9111,144.7,144.65,6.9129]
[1728361604916,0.25098,144.73,144.65,6.9129]
[1728361605105,6.9116,144.69,144.65,6.9129]
[1728361605504,6.9116,144.69,144.64,13.418]
[1728361608704,6.9116,144.69,144.65,1.38243176]
[1728361611116,6.9116,144.69,144.64,13.418]
[1728361612612,20.0,144.73,144.65,23.776884]
[1728361612931,17.2728,144.74,144.65,6.9127]
[1728361612932,6.9114,144.69,144.65,6.9127]
[1728361616634,6.9126,144.67,144.64,6.5044]
[1728361616927,6.9123,144.67,144.64,6.5044]
[1728361617505,6.9119,144.68,144.64,6.5044]
[1728361617722,6.9119,144.68,144.64,13.418]
[1728361620732,6.9119,144.68,144.64,14.80046079]
[1728361621434,0.12549,144.7,144.64,14.80046079]
[1728361621610,6.9114,144.69,144.65,6.913]
[1728361628136,0.12549,144.72,144.6,23.6898]
[1728361628137,0.25098,144.7,144.6,23.6898]
[1728361628310,6.9141,144.64,144.6,23.6898]
[1728361629835,6.9141,144.64,144.6,30.6053]
[1728361635548,17.28,144.68,144.6,23.6898]
[1728361635745,15.234,144.72,144.64,12.91621798]
[1728361635938,6.9104,144.71,144.66,6.9122]
[1728361636125,6.9102,144.72,144.67,8.29433514]
[1728361637372,6.9095,144.73,144.68,6.9117]
[1728361637539,6.9095,144.73,144.69,1.38210681]
[1728361637744,6.9095,144.73,144.68,6.9117]
[1728361644952,6.9095,144.73,144.67,23.776884]
[1728361645254,6.9095,144.73,144.69,6.9112]
[1728361652848,6.9092,144.74,144.7,6.9108]
[1728361653556,6.9096,144.73,144.69,23.305]
[1728361654352,6.9096,144.73,144.69,16.3939]
[1728361654554,6.9102,144.72,144.69,16.3939]
[1728361654744,17.2693,144.77,144.69,16.3939]
[1728361654745,6.9104,144.71,144.69,16.3939]
[1728361656876,6.9099,144.72,144.69,16.3939]
[1728361657455,6.9094,144.73,144.7,1.38210792]
[1728361657664,6.909,144.74,144.7,6.9108]
[1728361663240,17.2693,144.77,144.69,16.3939]
[1728361663437,6.9083,144.76,144.71,6.91]
[1728361663646,6.9083,144.76,144.72,1.38177236]
[1728361664361,6.9085,144.75,144.72,1.38177236]
[1728361664740,6.9085,144.75,144.71,6.91]
[1728361674784,6.9085,144.75,144.72,1.38177071]
[1728361677600,6.9081,144.76,144.72,1.38177071]
[1728361678187,6.9081,144.76,144.72,8.29137071]
[1728361678698,6.9081,144.76,144.72,6.9096]
[1728361678993,6.9076,144.77,144.73,6.9092]
[1728361679395,6.9079,144.76,144.72,6.9097]
[1728361685015,37.51758,144.79,144.71,17.2752]
[1728361685190,6.909,144.74,144.71,17.2752]
[1728361686315,6.9086,144.75,144.71,17.2752]
[1728361689099,6.9086,144.75,144.71,24.1854]
[1728361697407,6.9095,144.73,144.7,6.0405]
[1728361697613,6.9095,144.73,144.69,23.305]
[1728361699424,17.269,144.77,144.7,23.776884]
[1728361699707,20.0,144.79,144.7,41.053684]
[1728361699907,6.9083,144.76,144.71,6.91]
[1728361700210,6.9083,144.76,144.72,6.9098]
[1728361701218,20.0,144.79,144.7,41.053684]
[1728361701386,6.9093,144.74,144.7,24.1875]
[1728361701712,6.9085,144.75,144.71,6.9102]
[1728361703885,6.9081,144.76,144.71,6.9102]
[1728361704085,6.9081,144.76,144.72,1.38174836]
[1728361705713,6.9081,144.76,144.72,6.9097]
[1728361707219,20.0,144.77,144.69,66.3939]
[1728361707398,6.9079,144.77,144.73,6.9093]
[1728361708504,6.908,144.76,144.72,24.1842]
[1728361708707,0.25098,144.79,144.7,23.776884]
[1728361709014,6.9086,144.75,144.71,6.9103]
[1728361714404,6.9088,144.75,144.71,6.9103]
[1728361715431,20.25098,144.77,144.7,17.2765]
[1728361715603,6.909,144.74,144.7,24.1872]
[1728361718727,6.909,144.74,144.7,17.2765]
[1728361719222,6.9105,144.71,144.67,30.6393]
[1728361719598,6.91,144.72,144.68,6.9117]
[1728361719799,20.12549,144.75,144.67,23.7275]
[1728361720001,6.9094,144.73,144.69,6.9112]
[1728361725923,6.91,144.72,144.68,6.9117]
[1728361726826,6.9095,144.73,144.68,6.9117]
[1728361727002,6.9095,144.73,144.67,23.7275]
[1728361727206,6.909,144.74,144.69,17.2778]
[1728361727530,6.9085,144.75,144.71,6.9101]
[1728361728531,6.9085,144.75,144.71,8.29193048]
[1728361729030,6.9085,144.75,144.71,6.9101]
[1728361729422,6.9085,144.75,144.69,17.2778]
[1728361729626,6.9085,144.75,144.7,6.9106]
[1728361731617,6.9089,144.74,144.7,6.9106]
[1728361734551,0.25098,144.77,144.69,17.2778]
[1728361734724,6.9094,144.73,144.69,24.189]
[1728361735231,17.2691,144.77,144.67,6.4473]
[1728361735435,20.12549,144.76,144.68,23.776884]
[1728361735627,6.9094,144.73,144.69,6.9111]
[1728361736838,17.2691,144.77,144.68,41.055884]
[1728361736839,6.909,144.74,144.7,8.29268926]
[1728361737839,6.909,144.74,144.71,1.38187709]
[1728361738133,6.9086,144.75,144.72,1.38188153]
[1728361741211,6.9086,144.75,144.71,6.9103]
[1728361743646,6.9086,144.75,144.72,1.381808]
[1728361744325,6.9086,144.75,144.71,6.9103]
[1728361745039,6.9086,144.75,144.72,1.38180845]
[1728361745241,6.9086,144.75,144.71,6.9103]
[1728361745720,6.9086,144.75,144.72,1.38180849]
[1728361745919,6.9086,144.75,144.71,6.9103]
[1728361746443,6.909,144.74,144.72,1.38181176]
[1728361746629,6.909,144.74,144.7,6.9107]
[1728361750122,17.4649408,144.8,144.69,16.0901]
[1728361750317,20.0,144.79,144.72,6.9095]
[1728361750517,6.908,144.76,144.72,6.9095]
[1728361751528,17.4649408,144.8,144.73,1.38163919]
[1728361751735,17.4649408,144.8,144.72,19.19771798]
[1728361752245,17.4649408,144.8,144.73,23.776884]
[1728361752542,17.4649408,144.8,144.74,1.38146709]
[1728361752852,6.907,144.78,144.74,25.56196709]
[1728361753346,6.9067,144.79,144.74,25.56196709]
[1728361756358,6.907,144.78,144.74,24.1805]
[1728361761138,6.9075,144.77,144.74,17.2719]
[1728361767464,0.8117408,144.8,144.73,16.2928]
[1728361767842,20.8117408,144.8,144.73,16.2928]
[1728361768967,6.9076,144.77,144.73,16.2928]
[1728361769267,6.9076,144.77,144.73,23.2021]
[1728361770272,6.9071,144.78,144.74,6.9089]
[1728361775562,6.9071,144.78,144.73,40.475]
[1728361781680,6.9071,144.78,144.73,33.566]
[1728361781886,6.9071,144.78,144.74,6.9088]
[1728361800291,6.9075,144.77,144.73,40.4753]
[1728361800497,17.51788,144.79,144.7,17.2762]
[1728361800672,20.0,144.78,144.69,16.4046]
[1728361800879,6.9098,144.73,144.69,16.4046]
[1728361802790,6.9098,144.73,144.68,13.2632]
[1728361803108,6.9102,144.72,144.67,24.1919]
[1728361803399,6.9118,144.68,144.64,23.7179]
[1728361804583,6.9114,144.69,144.65,1.38246722]
[1728361805796,6.9114,144.69,144.64,23.7179]
[1728361805978,6.9114,144.69,144.65,6.9132]
[1728361807003,20.12549,144.72,144.64,23.7179]
[1728361807209,6.909,144.74,144.69,6.9112]
[1728361807417,6.909,144.74,144.7,1.3820076]
[1728361808893,26.9085,144.75,144.7,8.2926076]
[1728361809204,26.9085,144.75,144.71,8.29221741]
[1728361809500,6.9085,144.75,144.72,1.38182589]
[1728361809685,6.908,144.76,144.72,1.38175405]
[1728361811001,6.908,144.76,144.71,6.9103]
[1728361811911,6.908,144.76,144.71,8.29204773]
[1728361812910,6.9085,144.75,144.72,1.38174744]
[1728361813095,6.9085,144.75,144.71,6.9103]
[1728361813293,6.9085,144.75,144.72,1.38178992]
[1728361813611,20.0,144.79,144.73,1.38179609]
[1728361814109,16.7383408,144.8,144.73,1.38179609]
[1728361814404,0.8117408,144.8,144.74,1.38144347]
[1728361814914,6.9067,144.79,144.74,8.29034347]
[1728361815291,0.8117408,144.8,144.73,6.9094]
[1728361815511,0.12549,144.79,144.72,17.2738]
[1728361815812,6.9085,144.75,144.72,17.2738]
[1728361815997,20.12549,144.79,144.72,17.2738]
[1728361816196,6.908,144.76,144.72,17.2738]
[1728361816801,0.12549,144.77,144.7,6.3857]
[1728361816995,6.9093,144.74,144.7,6.3857]
[1728361817386,6.9093,144.74,144.7,13.2964]
[1728361818302,6.9102,144.72,144.68,32.9563]
[1728361819904,6.9102,144.72,144.68,39.868]
[1728361820419,17.2704,144.76,144.68,39.868]
[1728361820420,0.12549,144.75,144.68,15.6779]
[1728361820592,6.911,144.7,144.67,6.5249]
[1728361820908,6.911,144.7,144.68,1.38226034]
[1728361821218,6.911,144.7,144.66,6.9127]
[1728361821753,6.9104,144.71,144.67,1.38219953]
[1728361822916,6.9104,144.71,144.68,1.38216733]
[1728361824020,6.91,144.72,144.67,8.29406788]
[1728361824524,6.9095,144.73,144.69,6.9112]
[1728361824697,6.909,144.74,144.7,8.29260933]
[1728361825606,6.909,144.74,144.71,1.38188392]
[1728361825798,6.9086,144.75,144.72,1.38185099]
[1728361826522,6.908,144.76,144.72,1.38185099]
[1728361827203,6.907,144.78,144.74,6.9088]
[1728361827407,6.907,144.78,144.75,1.38147172]
[1728361828822,6.907,144.78,144.74,6.9088]
[1728361829197,6.907,144.78,144.73,6.9093]
[1728361830420,6.907,144.78,144.74,1.38150488]
[1728361831414,6.9066,144.79,144.75,1.38149231]
[1728361831618,6.9066,144.79,144.75,8.28989231]
[1728361832412,6.9066,144.79,144.76,1.38143998]
[1728361832614,0.8117408,144.8,144.76,1.38143998]
[1728361832799,7.7177408,144.8,144.76,1.38143998]
[1728361833002,7.7177408,144.8,144.75,6.9084]
[1728361833213,6.9067,144.79,144.75,6.9084]
[1728361835009,6.9067,144.79,144.76,1.38136112]
[1728361837124,7.7178408,144.8,144.76,1.38136112]
[1728361838225,0.8117408,144.8,144.76,8.28886112]
[1728361838518,0.8117408,144.8,144.77,6.9074]
[1728361838707,0.8117408,144.8,144.78,1.38119503]
[1728361839523,0.8117408,144.8,144.76,6.9078]
[1728361842313,0.8117408,144.8,144.77,1.3811954]
[1728361843022,0.8117408,144.8,144.76,6.9078]
[1728361843514,0.8117408,144.8,144.77,1.38115789]
[1728361844726,0.8117408,144.8,144.78,1.381165]
[1728361845504,0.8117408,144.8,144.78,8.288165]
[1728361845704,0.8117408,144.8,144.79,1.38107342]
[1728361847122,0.8117408,144.8,144.77,6.9073]
[1728361847324,0.8117408,144.8,144.78,1.38108646]
[1728361848528,2.7173408,144.81,144.78,1.38108646]
[1728361848720,20.0,144.85,144.78,1.38108646]
[1728361849938,20.0,144.85,144.77,6.9073]
[1728361850112,6.9056,144.81,144.77,6.9073]
[1728361851327,20.0,144.85,144.76,30.684684]
[1728361851518,6.9061,144.8,144.76,30.684684]
[1728361866343,6.9061,144.8,144.77,1.38117621]
[1728361866546,6.9061,144.8,144.76,30.684684]
[1728361869942,6.9061,144.8,144.77,1.3811765]
[1728361870839,6.9061,144.8,144.76,30.684684]
[1728361873223,6.9061,144.8,144.75,17.2707]
[1728361873430,6.9066,144.79,144.75,24.1791]
[1728361873650,6.9066,144.79,144.76,1.38134744]
[1728361875629,17.38619,144.84,144.75,17.2707]
[1728361875953,6.9057,144.81,144.77,6.9073]
[1728361876752,6.9057,144.81,144.78,1.3811652]